Cogmind - Beta 10.2 --- EXPLORER MODE // 2021.04.01 @ 17:43:18 // AFD2021/Volatile Player: RezTeKK Result: Destroyed by Y-45 Defender with Beam Rifle Performance ------------- Evolutions (2) 1000 Regions Visited (6) 1200 Robots Destroyed (90) 450 Value Destroyed (2320) 2320 Prototype IDs (9) 180 Alien Tech Used (0) 0 Bonus (48) 48 TOTAL SCORE: 5198 Bonus ------- High Alert Combat Kills 265 Follower Combat Kills 111 Aligned with FarCom 300 Friendly Fire -628 Cogmind --------- Core Integrity 0/550 Matter 62/300 Energy 100/100 System Corruption 0% Temperature Cool (9) Movement Core (550) Ox10 Location -8/Storage Parts ------- > --- POWER (1) -------- (None) > --- PROPULSION (2) --- (None) > --- UTILITY (7) ------ High-capacity Storage Unit > --- WEAPON (2) ------- (None) > --- INVENTORY (12) --- Ion Engine Carbon-fiber Leg Armored Huge Wheel Armored Huge Wheel Shield Generator Advanced Beam Rifle Assault Rifle Minigun Peak State ------------ > --- POWER ------------ Improved Deuterium Engine > --- PROPULSION ------- Armored Huge Wheel > --- UTILITY ---------- High-capacity Storage Unit Army-in-a-Box > --- WEAPON ----------- Assault Cannon Assault Cannon > --- INVENTORY -------- Ion Engine Armored Huge Wheel Armored Huge Wheel Heat Sink Light Armor Plating Shield Generator Assault Rifle Improved Assault Rifle Minigun [Rating: 75] Favorites ----------- Power Ion Engine Engine Ion Engine Propulsion Aluminum Leg Leg Aluminum Leg Wheel Armored Huge Wheel Utility Signal Interpreter Device Army-in-a-Box Storage High-capacity Storage Unit Processor Signal Interpreter Protection Light Armor Plating Weapon Assault Rifle Energy Gun Medium Laser Ballistic Gun Assault Rifle Ballistic Cannon Assault Cannon Build | -11 -10 -10 -10 -9 -8 -8 ------- Run | Scr Mat Min Exi Min Mat Sto Slots Evolved 5 | . 1 . . . 4 . Power . | . . . . . . . Propulsion . | . . . . . . . Utility 5 | . 1 . . . 4 . Weapon . | . . . . . . . Parts Attached 26 | 7 4 . 2 . 9 4 Power 3 | 1 . . . . 2 . Engine 3 | 1 . . . . 2 . Core . | . . . . . . . Reactor . | . . . . . . . Propulsion 8 | 2 1 . . . 5 . Treads . | . . . . . . . Leg 7 | 2 1 . . . 4 . Wheel 1 | . . . . . 1 . Hover . | . . . . . . . Flight . | . . . . . . . Utility 9 | 2 2 . 2 . 1 2 Device 2 | . . . . . 1 1 Storage 2 | . 1 . 1 . . . Processor 2 | 2 . . . . . . Hackware . | . . . . . . . Protection 3 | . 1 . 1 . . 1 Artifact . | . . . . . . . Weapon 6 | 2 1 . . . 1 2 Energy Gun 1 | 1 . . . . . . Energy Cannon . | . . . . . . . Ballistic Gun 3 | 1 1 . . . . 1 Ballistic Cannon 2 | . . . . . 1 1 Launcher . | . . . . . . . Special Weapon . | . . . . . . . Impact Weapon . | . . . . . . . Slashing Weapon . | . . . . . . . Piercing Weapon . | . . . . . . . Special Melee Weapon . | . . . . . . . Unidentified Prototypes 2 | . . . . . 1 1 Parts Lost 17 | . 2 . . . 5 10 Power 3 | . . . . . 1 2 Propulsion 4 | . . . . . 3 1 Utility 4 | . 1 . . . . 3 Weapon 6 | . 1 . . . 1 4 Highest Loss Streak 6 | . 1 . . . 3 6 Average Slot Usage (%) 77 | . 98 87 100 100 55 49 Engine 9 | . 12 12 12 12 6 7 Leg 17 | . 25 25 25 25 14 . Wheel 1 | . . . . . . 7 Device 3 | . . . . . 8 7 Storage 9 | . 8 12 12 12 8 8 Processor 9 | . 24 12 12 12 . . Protection 4 | . 2 . 12 12 . 3 Energy Gun 1 | . 5 . . . . 1 Ballistic Gun 16 | . 18 25 25 25 13 5 Ballistic Cannon 2 | . . . . . 2 7 Naked Turns . | . . . . . . . Heaviest Build 132 | 9 25 25 44 44 129 132 Greatest Support 28 | 20 20 20 20 20 28 28 Greatest Overweight (x) 10 | . 2 1 2 2 6 10 Average Overweight (x) 1 | . . 1 1 2 4 2 Largest Inventory Capacity 12 | 4 10 10 12 12 12 12 Average Capacity 10 | 4 8 10 10 12 12 12 Most Carried 12 | 2 10 10 10 10 12 12 Average Carried 8 | . 6 10 9 10 9 10 Final Capacity 12 | 4 10 10 12 12 12 12 Final Carried 12 | . 10 10 10 10 12 10 Class Distribution -------------------- 100% | Hacker-Mutant Dominant Class ---------------- Hacker-Mutant | -10/Materials Hacker-Mutant | -10/Mines Hacker-Mutant | -10/Exiles Hacker-Mutant | -9/Mines Hacker-Mutant | -8/Materials Hacker-Mutant | -8/Storage Resources | -11 -10 -10 -10 -9 -8 -8 ----------- Run | Scr Mat Min Exi Min Mat Sto Matter Collected 919 | 204 249 . 10 . 209 247 Remotely . | . . . . . . . Salvage Created 2372 | . 704 . . . 967 701 Parts 147 | . 52 . . . 49 46 Haulers Intercepted 3 | . . . . . 1 2 Recyclers Shooed 2 | . . . . . 2 . Parts Field Recycled . | . . . . . . . Retrieved Matter . | . . . . . . . Parts Self-Destructed . | . . . . . . . Prevented . | . . . . . . . Kills | -11 -10 -10 -10 -9 -8 -8 ------- Run | Scr Mat Min Exi Min Mat Sto Combat Hostiles Destroyed 63 | . 17 . . . 29 17 Guns 33 | . 13 . . . 17 3 Cannons 14 | . . . . . 6 8 AOE 16 | . 4 . . . 6 6 Classes Destroyed 11 | . 6 . . . 5 . Worker 8 | . 3 . . . 3 2 Builder 6 | . 3 . . . . 3 Hauler 3 | . . . . . 1 2 Recycler 4 | . 2 . . . 1 1 Operator 2 | . . . . . 1 1 Drone 3 | . . . . . 3 . Watcher 4 | . 2 . . . 1 1 Swarmer 26 | . 6 . . . 13 7 Grunt 27 | . 11 . . . 10 6 Sentry 7 | . . . . . 3 4 Hunter 3 | . . . . . 3 . Best Kill Streak 12 | . 6 . . . 12 12 Combat Bots Only 10 | . 4 . . . 10 7 Max Kills in Single Turn 7 | . 5 . . . 7 5 Gunslinging 1 | . 1 . . . 1 . Exploded 2 | . 1 . . . 2 2 Melee . | . . . . . . . Uniques/NPCs Destroyed . | . . . . . . . Combat | -11 -10 -10 -10 -9 -8 -8 -------- Run | Scr Mat Min Exi Min Mat Sto Damage Taken 3323 | . 284 . . . 1570 1469 Core 599 | . 44 . . . 186 369 Absorbed by Shields 26 | . . . . . . 26 Core Remaining (%) 91 | 100 . . . 82 . . Volleys Fired 136 | . 44 . . . 61 31 Largest 2 | . 2 . . . 2 2 Hottest 88 | . 70 . . . 64 88 Shots Fired 263 | . 86 . . . 117 60 Gun 204 | . 86 . . . 100 18 Cannon 59 | . . . . . 17 42 Launcher . | . . . . . . . Special . | . . . . . . . Kinetic 227 | . 51 . . . 117 59 Thermal 36 | . 35 . . . . 1 Explosive . | . . . . . . . Electromagnetic . | . . . . . . . Robot Hit Streak 38 | . 15 . . . 26 38 Robot Miss Streak 4 | . 4 . . . 2 1 Penetration Max . | . . . . . . . Secondary Targets 7 | . 4 . . . 3 . Max Gunslinging Chain 1 | . 1 . . . 1 . Shots Hit Robots 217 | . 68 . . . 97 52 Core Hits 152 | . 41 . . . 68 43 Critical Hits 2 | . . . . . 1 1 Critical Kills . | . . . . . . . Critical Parts Destroyed 2 | . . . . . 1 1 Melee Attacks . | . . . . . . . Impact . | . . . . . . . Slashing . | . . . . . . . Piercing . | . . . . . . . Sneak Attacks . | . . . . . . . Combat Hostiles . | . . . . . . . Follow-up Attacks . | . . . . . . . Damage Inflicted 7331 | . 2032 . . . 2906 2393 Guns 1897 | . 809 . . . 854 234 Cannons 1227 | . . . . . 356 871 Explosions 4191 | . 1223 . . . 1696 1272 Melee . | . . . . . . . Ramming 16 | . . . . . . 16 Kinetic 2761 | . 458 . . . 1210 1093 Thermal 1736 | . 604 . . . 804 328 Explosive 2617 | . 959 . . . 877 781 Electromagnetic 201 | . 11 . . . 15 175 Impact . | . . . . . . . Slashing . | . . . . . . . Piercing . | . . . . . . . Highest Corruption . | . . . . . . . Average Corruption . | . . . . . . . Corruption Purged . | . . . . . . . Overload Shots . | . . . . . . . Overflow Damage 300 | . 107 . . . 70 123 Projectiles 32 | . . . . . . 32 Explosions 268 | . 107 . . . 70 91 Melee . | . . . . . . . Knockbacks 5 | . . . . . 1 4 Impact . | . . . . . . . Kinetic 5 | . . . . . 1 4 Secondary . | . . . . . . . Self-Inflicted Damage 341 | . 13 . . . 268 60 Shots 16 | . 2 . . . 10 4 Rammed 5 | . . . . . . 5 Targets Rammed 5 | . . . . . . 5 Kicked . | . . . . . . . Crushed . | . . . . . . . Highest Temperature 156 | . 156 . . . 32 72 Average Temperature 33 | . 41 . . . 8 25 Received Heat Transfer 1494 | . 189 . . . 567 738 Siege Activations . | . . . . . . . Robots Corrupted . | . . . . . . . Combat Hostiles . | . . . . . . . Parts Fried 1 | . . . . . . 1 Impact Corruptions . | . . . . . . . Robots Melted . | . . . . . . . Combat Hostiles . | . . . . . . . Parts Melted 3 | . . . . . 1 2 Heat Transferred 3043 | . 1316 . . . 1160 567 Parts Sabotaged . | . . . . . . . Parts Stolen . | . . . . . . . Parts Stripped . | . . . . . . . Power Chain Reactions 5 | . 3 . . . 2 . Missiles Intercepted . | . . . . . . . Alert | -11 -10 -10 -10 -9 -8 -8 ------- Run | Scr Mat Min Exi Min Mat Sto Peak Influence . | . . . . . . . Initial 146 | . . 68 . . . 146 Average . | . . . . . . . Maximum Alert Level 3 | . 2 . . . 3 3 Low Security (%) 45 | 100 52 100 . 100 60 2 Level 1 20 | . 45 . . . 4 17 Level 2 17 | . 2 . . . 23 32 Level 3 16 | . . . . . 11 48 Level 4 . | . . . . . . . Level 5 . | . . . . . . . High Security . | . . . . . . . Max Security . | . . . . . . . Squads Dispatched 13 | . 2 . . . 5 6 Investigation 6 | . 2 . . . 3 1 Extermination . | . . . . . . . Reinforcement 5 | . . . . . 2 3 Assault 2 | . . . . . . 2 Garrison . | . . . . . . . Intercept . | . . . . . . . Construction Impeded 1 | . . . . . . 1 Haulers Reinforced . | . . . . . . . Stealth | -11 -10 -10 -10 -9 -8 -8 --------- Run | Scr Mat Min Exi Min Mat Sto Distress Signals 8 | . . . . . 3 5 Communications Jammed . | . . . . . . . Distress Signals . | . . . . . . . Times Spotted 122 | . 21 . . . 42 59 Peak Tracking Total 18 | . 6 . . . 8 18 Tactical Retreats 9 | . . . . . . 9 Traps | -11 -10 -10 -10 -9 -8 -8 ------- Run | Scr Mat Min Exi Min Mat Sto Traps Triggered 3 | . . . . . . 3 Indirectly . | . . . . . . . Trap Hack Attempts . | . . . . . . . Triggered . | . . . . . . . Disarmed 1 | . 1 . . . . . Reprogrammed 8 | . . . . . 6 2 Reused 3 | . . . . . 1 2 Traps Extracted . | . . . . . . . Installed . | . . . . . . . Triggered 3 | . . . . . 1 2 Machines | -11 -10 -10 -10 -9 -8 -8 ---------- Run | Scr Mat Min Exi Min Mat Sto Machines Disabled 23 | . 9 . . . 8 6 Max in Single Turn 4 | . 4 . . . 2 4 Machines Sabotaged . | . . . . . . . Garrisons Compromised . | . . . . . . . Overloaded Fab Kills . | . . . . . . . Fab Network Shutdowns . | . . . . . . . Hacking | -11 -10 -10 -10 -9 -8 -8 --------- Run | Scr Mat Min Exi Min Mat Sto Machines Accessed 21 | . 6 . 4 . 6 5 Terminals 14 | . 6 . . . 6 2 Fabricators . | . . . . . . . Repair Stations 1 | . . . . . . 1 Recycling Units 2 | . . . . . . 2 Scanalyzers . | . . . . . . . Garrison Access . | . . . . . . . Total Hacks 104 | . 22 . 49 . 22 11 Successful 90 | . 15 . 49 . 18 8 Failed 14 | . 7 . . . 4 3 Catastrophic . | . . . . . . . Database Lockouts . | . . . . . . . Manual 13 | . 3 . 1 . 3 6 Terminals 52 | . 22 . . . 22 8 Fabricators . | . . . . . . . Repair Stations 1 | . . . . . . 1 Recycling Units 2 | . . . . . . 2 Scanalyzers . | . . . . . . . Garrison Access . | . . . . . . . Terminal Hacks 84 | . 13 . 49 . 17 5 Record 60 | . 4 . 49 . 7 . Prototype ID Bank 5 | . 3 . . . 1 1 Branch Access Points 2 | . . . . . 1 1 Terminal Index 1 | . 1 . . . . . Repair Station Index 1 | . . . . . 1 . Alert Level 1 | . . . . . 1 . Unreport Threat 1 | . . . . . 1 . Locate Traps 2 | . 1 . . . 1 . Disarm Traps 1 | . 1 . . . . . Reprogram Traps 2 | . . . . . 1 1 Registered Components 1 | . 1 . . . . . Registered Prototypes 1 | . 1 . . . . . Zone Layout 6 | . 1 . . . 3 2 Fabricator Hacks . | . . . . . . . Repair Station Hacks 1 | . . . . . . 1 Refit 1 | . . . . . . 1 Recycling Unit Hacks 2 | . . . . . . 2 Report Inventory 1 | . . . . . . 1 Retrieve Matter 1 | . . . . . . 1 Scanalyzer . | . . . . . . . Garrison Access Hacks . | . . . . . . . Unauthorized Hacks 3 | . 2 . . . 1 . Terminals 3 | . 2 . . . 1 . Botnet 3 | . 2 . . . 1 . Fabricators . | . . . . . . . Repair Stations . | . . . . . . . Recycling Units . | . . . . . . . Scanalyzers . | . . . . . . . Garrison Access . | . . . . . . . Data Cores Recovered . | . . . . . . . Used . | . . . . . . . Hacking Detections 13 | . 5 . . . 4 4 Full Trace Events 7 | . 3 . . . 3 1 Feedback Events . | . . . . . . . Feedback Blocked . | . . . . . . . Robot Schematics Acquired . | . . . . . . . Robots Built . | . . . . . . . Matter . | . . . . . . . Time . | . . . . . . . Total Robot Build Rating . | . . . . . . . Part Schematics Acquired . | . . . . . . . Parts Built . | . . . . . . . Matter . | . . . . . . . Time . | . . . . . . . Total Part Build Rating . | . . . . . . . Parts Repaired . | . . . . . . . Time . | . . . . . . . Parts Recycled . | . . . . . . . Recycled Matter . | . . . . . . . Retrieved Matter . | . . . . . . . Retrieved Components . | . . . . . . . Parts Scanalyzed . | . . . . . . . Part Schematics Acquired . | . . . . . . . Parts Damaged . | . . . . . . . Bothacking | -11 -10 -10 -10 -9 -8 -8 ------------ Run | Scr Mat Min Exi Min Mat Sto Used RIF Installer . | . . . . . . . Robots Hacked . | . . . . . . . Non-combat . | . . . . . . . Combat . | . . . . . . . Robot Hacks Applied . | . . . . . . . Relay Couplers Released . | . . . . . . . Robots Rewired . | . . . . . . . Allies Hacked . | . . . . . . . Hacks Repelled . | . . . . . . . Allies | -11 -10 -10 -10 -9 -8 -8 -------- Run | Scr Mat Min Exi Min Mat Sto Total Allies . | . . . . . . . Largest Group . | . . . . . . . Highest-Rated Group . | . . . . . . . Highest-Rated Ally . | . . . . . . . Total Orders . | . . . . . . . Ally Attacks 31 | . . . . . 31 . Total Damage 836 | . . . . . 836 . Kills 6 | . . . . . 6 . Allies Corrupted . | . . . . . . . Allies Melted . | . . . . . . . Intel | -11 -10 -10 -10 -9 -8 -8 ------- Run | Scr Mat Min Exi Min Mat Sto Robot Analysis Total . | . . . . . . . Derelict Logs Recovered . | . . . . . . . Drone Launches 6 | . . . . . 6 . Drone Recoveries . | . . . . . . . Exploration | -11 -10 -10 -10 -9 -8 -8 ------------- Run | Scr Mat Min Exi Min Mat Sto Turns Passed 3196 | 61 772 12 837 49 872 593 Spaces Moved 1752 | 40 437 9 546 28 302 390 Core 2 | 1 . . . . . 1 Treads . | . . . . . . . Legs 1296 | 39 437 9 546 28 237 . Wheels 454 | . . . . . 65 389 Hover . | . . . . . . . Flight . | . . . . . . . Fastest Speed 50 | 50 120 150 150 180 140 110 Average Speed 154 | 118 141 150 152 180 222 121 Slowest Speed 550 | 120 180 150 180 180 300 550 Overloaded Moves . | . . . . . . . Propulsion Burnouts . | . . . . . . . Robots Hopped . | . . . . . . . Cave-ins Triggered . | . . . . . . . Exploration Rate (%) 44 | 4 83 4 92 14 46 70 Regions Visited 6 Branch Regions 4 Pre-discovered Areas 1 | . . . 1 . . . Known Exits Taken 6 | 1 1 1 1 1 1 . Unknown Exits Taken . | . . . . . . . Scrap Searched . | . . . . . . . Spaces Dug . | . . . . . . . Terrain Destroyed 444 | . 125 . . . 183 136 Melee . | . . . . . . . Projectile 3 | . . . . . . 3 AOE 441 | . 125 . . . 183 133 Terrain Rammed . | . . . . . . . Walls Destroyed . | . . . . . . . Machines Disabled . | . . . . . . . Actions | -11 -10 -10 -10 -9 -8 -8 --------- Run | Scr Mat Min Exi Min Mat Sto Total 1984 | 53 505 8 554 27 388 449 Wait . | . . . . . . . Move 1746 | 39 436 8 545 27 301 390 Hop . | . . . . . . . Pick Up 39 | 7 16 . 1 . 12 3 Fast Attach . | . . . . . . . Attach 21 | 7 3 . 1 . 7 3 Detach 1 | . . . . . 1 . Swap 5 | . 1 . 1 . 2 1 Drop 17 | . 5 . 6 . 4 2 Fire 136 | . 44 . . . 61 31 Melee . | . . . . . . . Ram 5 | . . . . . . 5 Kick . | . . . . . . . Crush . | . . . . . . . Escape Stasis 14 | . . . . . . 14 Rewire . | . . . . . . . Trap . | . . . . . . . Miscellaneous . | . . . . . . . Route ------- -11/Scrapyard -10/Materials (discovered 3 exits: *Mat x2 / *Min) -10/Mines -10/Exiles -9/Mines -8/Materials (discovered 4 exits: *Fac x2 / *Sto x2) -8/Storage (discovered 2 exits: *Fac / Rec) History --------- Turn | Location | Event 8 | -11/Scrapyard | Identified exit to Materials 8 | -11/Scrapyard | Discovered exit to Materials (range 15) 62 | -11/Scrapyard | Entered Materials 62 | -10/Materials | Evolved 1 slot: Utility x1 318 | -10/Materials | Build established: Hacker-Mutant 400 | -10/Materials | Identified exit to Materials 400 | -10/Materials | Discovered exit to Materials (range 9) 702 | -10/Materials | Discovered exit to Materials (range 3) 801 | -10/Materials | Identified exit to Mines 801 | -10/Materials | Discovered exit to Mines (range 9) 834 | -10/Materials | Entered Mines 840 | -10/Mines | Deemed a non-threat by the Exiles lab entrance 840 | -10/Mines | Identified exit to Exiles 840 | -10/Mines | Discovered exit to Exiles (range 5) 846 | -10/Mines | Entered Exiles 889 | -10/Exiles | Met 8R-AWN 921 | -10/Exiles | Met EX-HEX 1029 | -10/Exiles | Met EX-DEC 1078 | -10/Exiles | Learned location of Zion (-6) 1140 | -10/Exiles | Met EX-BIN 1162 | -10/Exiles | Aligned with FarCom system 1164 | -10/Exiles | Given EX-Vault access code 1248 | -10/Exiles | Opened EX-Vault 1271 | -10/Exiles | Found Prototype Device 1302 | -10/Exiles | Warned to stay clear of 0b10 Research branches 1408 | -10/Exiles | Visited The Gauntlet 1659 | -10/Exiles | Identified exit to Mines 1659 | -10/Exiles | Discovered exit to Mines (range 14) 1683 | -10/Exiles | Left Exiles lab with Army-in-a-Box 1683 | -10/Exiles | Entered Mines 1696 | -9/Mines | Met a Derelict bent on vengeance 1714 | -9/Mines | Identified exit to Materials 1714 | -9/Mines | Discovered exit to Materials (range 10) 1732 | -9/Mines | Entered Materials 1732 | -8/Materials | Evolved 4 slots: Utility x4 1734 | -8/Materials | Identified Army-in-a-Box 2316 | -8/Materials | Destroyed 10 combat bots 2321 | -8/Materials | Lost 3 parts (2n1w) 2348 | -8/Materials | Identified exit to Factory 2348 | -8/Materials | Discovered exit to Factory (range 18) 2429 | -8/Materials | Destroyed 8 combat bots 2528 | -8/Materials | Discovered exit to Factory (range 5) 2558 | -8/Materials | Identified exit to Storage 2604 | -8/Materials | Entered Storage 2810 | -8/Storage | Destroyed 7 combat bots 2894 | -8/Storage | Discovered exit to Factory (range 15) 2913 | -8/Storage | Identified exit to Recycling 3004 | -8/Storage | First assault squad dispatched 3094 | -8/Storage | Core integrity fell below 50% 3182 | -8/Storage | Lost 6 parts (2p2u2w) 3192 | -8/Storage | Core integrity fell below 20% 3197 | -8/Storage | Destroyed by Y-45 Defender with Beam Rifle Last Messages --------------- 03117_ Imp. Deuterium Engine destroyed. 03119_ Imp. Assault Rifle destroyed. 03127_ Connecting with Repair Station... >>Refit Scanning configuration... Attaching: Backup Power III x1 Backup Laser III x2 03139_ Broken Heat Sink destroyed. 03145_ Backup Power III destroyed. 03151_ Backup Laser III destroyed. 03156_ W-25 Informer distress signal alerts nearby ally. 03164_ Connecting with Door Terminal... 03176_ ALERT: Hostiles spotted, dispatching reinforcements to Terminal S009. 03187_ Slammed into Y-45 Defender. 03187_ Destabilizing: Core damaged (-5). 03188_ Arm. Huge Wheel destroyed. 03190_ Backup Laser III destroyed. 03190_ Slammed into B-36 Bruiser. Map ----- +----------------------------------------------------+ | | | | | | | | | | | | | ??????????????????????????????????? | | ??????????????????????????????????? | | ??????????????????????????????????? | | ??????????????????????????????????? | | ??????????????????????????????????? | | ???????????##???????##????????????? | | ???????????# ????? #????????????? | | ???????????# #????????????? | | ??????????## """" #??>?????????? | | ??????????# ! """" #????????????? | | ???????????# """" #?""""???????? | | ???????????# """" ### #???????? | | ????????????? ##T #???????? | | ##T ?????????? ???# #???????? | | ### ?????????###/##???# #???????? | | #####/######### ##### #???????? | | g #???????? | | ! #???????? | | ######### ### ##Y########????? | | +####????# #?###### bYmY@b #????? | | ????# #??????# """"YlY #????? | | ????# #??????# "??""l #????? | | ????# #??????#Y"???""Yg#????? | | """????# #??????# ""???" m#????? | | """????# #??????# ""??"lg#????? | | """????+ +??????# """" l#????? | | """????# #??????# #????? | | ????+ #??????###########????? | | #####????#+##?????????????????????? | | ??????????????????????????????????? | | ??????????????????????????????????? | | ??????????????????????????????????? | | ??????????????????????????????????? | | ??????????????????????????????????? | | ??????????????????????????????????? | | ??????????????????????????????????? | | ??????????????????????????????????? | | ??????????????????????????????????? | | ??????????????????????????????????? | | ??????????????????????????????????? | | ??????????????????????????????????? | | ??????????????????????????????????? | | ??????????????????????????????????? | | ??????????????????????????????????? | +----------------------------------------------------+ Best States ------------- Heat Dissipation 41 Energy Generation 16 Energy Capacity 290 Matter Stores 300 Matter Capacity 300 Sight Range 16 Terrain Scan Density 10 Armor Coverage 150 Resistance: KI 35 Resistance: TH 35 Resistance: EX 35 Resistance: EM 35 Resistance: I 35 Resistance: S 35 Resistance: P 35 Propulsion Shielding 33 Evasion (%) 40 Targeting Accuracy 5 Offensive Hacking 20 Item Schematics ----------------- None Robot Schematics ------------------ None Fabricated ------------ Nothing Alien Tech Used ----------------- None Achievements -------------- None Challenges ------------ None Game ------ Seed HoverSalvageMembrane Manual? 0 Play Time 00:39:42 Cumulative 118.5 hours Start 2021.04.01 @ 17:05:49 End 2021.04.01 @ 17:43:18 Sessions 1 Manual Loads 0 Difficulty Explorer Special Mode AFD2021/Volatile Game No. 80 Rogue 74 Adventurer 0 Explorer 6 Win Type - Total 1 Types 1/0/0/0/0/0/0/0/0 Lore% 55 Gallery% 53 Achievement% 42 Wizard Run 0 Options --------- ASCII 0 Keyboard 0 Movement Mouse Keybinds 1 Fullscreen 1 Font 18/SmallcapsGlow Map View 76x50 Tactical HUD 1 Map Filters NONE Filters NONE Steam 1 RUN: 40be8105-3667-4553-9c4b-2de8e7fb3d9d